Cogmind - Beta 15 @@@ ROGUE MODE // 2025.06.23 @ 13:51:27 Player: Dendrocnid Result: Destroyed by Y-54 Guardian with Flak Gun Performance ------------- Evolutions (3) 1500 Regions Visited (8) 1600 Robots Destroyed (46) 230 Value Destroyed (2468) 2468 Prototype IDs (0) 0 Alien Tech Used (0) 0 Bonus (1243) 1243 TOTAL SCORE: 7041 Bonus ------- High Alert Combat Kills 202 Follower Combat Kills 141 Entered Garrisons 400 Used RIF Installer 500 Cogmind --------- Core Integrity 0/700 Matter 300/300 Energy 100/100 System Corruption 0% Temperature Cool (18) Movement Core (1350) Ox26 Location -7/Garrison Parts ------- > --- POWER (1) -------- (None) > --- PROPULSION (2) --- (None) > --- UTILITY (7) ------ Huge Storage Unit > --- WEAPON (3) ------- (None) > --- INVENTORY (25) --- Improved Heat Sink Improved Cooling System High-capacity Matter Pod (200) Relay Coupler [Cutter] (29) Relay Coupler [Duelist] (32) Relay Coupler [Behemoth] (8) Improved Trap Extractor (0/6) Improved Datajack Peak State ------------ > --- POWER ------------ Micro Nuclear Core > --- PROPULSION ------- Armored Wheel Armored Wheel > --- UTILITY ---------- Huge Storage Unit Trap Scanner Reflective Plating Relay Coupler [Swarmer] Relay Coupler [Grunt] Relay Coupler [Hunter] Improved Trap Extractor > --- WEAPON ----------- Datajack Remote Datajack Makeshift Spear > --- INVENTORY -------- Light Nuclear Core Light Nuclear Core Armored Wheel Armored Wheel Armored Wheel Armored Wheel Improved Heat Sink Improved Cooling System High-capacity Matter Pod Relay Coupler [Grunt] Relay Coupler [Duelist] Relay Coupler [Sentry] Relay Coupler [Behemoth] Proton Missile Launcher Grenade Launcher Improved Datajack Heavy Explosive Trap Heavy Explosive Trap Tiamat Bomb Trap Tiamat Bomb Trap Hellfire Trap [Rating: 44] Favorites ----------- Power Ion Engine Engine Ion Engine Power Core Micro Nuclear Core Propulsion Compact Wheel Treads Advanced Treads Wheel Compact Wheel Utility Huge Storage Unit Device Improved Trap Extractor Storage Huge Storage Unit Hackware Relay Coupler [Swarmer] Protection Reflective Plating Weapon Makeshift Shrapnel Gun Energy Gun EM Pulse Gun Ballistic Gun Makeshift Shrapnel Gun Ballistic Cannon Advanced Assault Cannon Launcher Proton Missile Launcher Special Weapon Remote Datajack Piercing Weapon Makeshift Spear Special Melee Weapon Datajack Build | -11 -10 -10 -10 -9 -8 -8 -7 -7 ------- Run | Yrd Mat Min Exi Min Mat Gar Fac Gar Slots Evolved 6 | . . . . . 4 . 2 . Power . | . . . . . . . . . Propulsion . | . . . . . . . . . Utility 5 | . . . . . 3 . 2 . Weapon 1 | . . . . . 1 . . . Parts Attached 49 | 6 4 3 2 1 6 10 9 8 Power 7 | 1 . . . . 1 2 1 2 Engine 3 | 1 . . . . . 1 . 1 Core 4 | . . . . . 1 1 1 1 Reactor . | . . . . . . . . . Propulsion 10 | 2 . . . . . 3 2 3 Treads 1 | . . . . . . . . 1 Leg . | . . . . . . . . . Wheel 9 | 2 . . . . . 3 2 2 Hover . | . . . . . . . . . Flight . | . . . . . . . . . Utility 18 | 1 3 2 . . 3 3 5 1 Device 5 | . 1 2 . . 2 . . . Storage 3 | 1 2 . . . . . . . Processor . | . . . . . . . . . Hackware 7 | . . . . . . 1 5 1 Protection 3 | . . . . . 1 2 . . Artifact . | . . . . . . . . . Weapon 14 | 2 1 1 2 1 2 2 1 2 Energy Gun 2 | 1 . . . . 1 . . . Energy Cannon . | . . . . . . . . . Ballistic Gun 4 | 1 . . 1 . . . . 2 Ballistic Cannon 1 | . . . . 1 . . . . Launcher 2 | . 1 . . . . 1 . . Special Weapon 1 | . . . . . . . 1 . Impact Weapon . | . . . . . . . . . Slashing Weapon . | . . . . . . . . . Piercing Weapon 1 | . . . 1 . . . . . Special Melee Weapon 3 | . . 1 . . 1 1 . . Unidentified Prototypes . | . . . . . . . . . Parts Lost 30 | . . . . . 1 7 6 16 Power 5 | . . . . . . 1 1 3 Propulsion 8 | . . . . . 1 . 2 5 Utility 6 | . . . . . . 2 1 3 Weapon 11 | . . . . . . 4 2 5 Highest Loss Streak 7 | . . . . . 1 2 5 7 To Critical Strikes . | . . . . . . . . . Average Backups 15 | 1 8 12 14 16 17 18 16 10 Power 1 | . 1 1 1 1 1 1 1 . Propulsion 3 | 1 4 5 5 3 3 3 3 1 Utility 5 | . 1 2 3 3 4 6 7 6 Weapon 3 | . . 2 4 5 4 3 2 1 Tool/Special . | . . . . . . . . . Unused Backups 14 | . . . . 2 4 3 . 5 Power 1 | . . . . . 1 . . . Propulsion 7 | . . . . 2 2 3 . . Utility 5 | . . . . . . . . 5 Weapon 1 | . . . . . 1 . . . Tool/Special . | . . . . . . . . . Average Slot Usage (%) 91 | . 96 100 100 100 84 92 83 67 Engine 5 | . 14 14 14 14 2 1 . 1 Core 4 | . . . . . 6 7 5 4 Wheel 19 | . 28 28 28 28 12 17 14 10 Device 15 | . 10 14 14 14 17 22 12 . Storage 10 | . 14 14 14 14 9 9 7 7 Hackware 4 | . . . . . . . 17 23 Protection 4 | . . . . . 8 8 6 . Energy Gun 4 | . 13 4 . . 8 7 . . Ballistic Gun 8 | . 14 14 16 15 9 6 . 5 Ballistic Cannon 2 | . . . . 12 9 2 . . Piercing Weapon 2 | . . . 1 . . 3 7 7 Special Melee Weapon 4 | . . 10 10 . . 3 2 1 Peak Build Rating 44 | 6 8 12 15 20 38 40 44 38 Average Rating 27 | 4 6 9 12 19 36 35 37 28 On Entrance 18 | . 6 8 12 15 20 36 35 34 Naked Turns . | . . . . . . . . . Heaviest Build 122 | 14 90 91 92 96 120 122 101 94 Greatest Support 32 | 26 26 26 26 26 26 32 24 24 Greatest Overweight (x) 34 | 1 3 3 3 3 7 34 7 27 Average Overweight (x) 3 | . 1 3 3 3 5 3 3 4 Largest Inventory Capacity 25 | 8 25 25 25 25 25 25 25 25 Average Capacity 24 | 6 17 25 25 25 25 25 25 25 Most Carried 25 | 5 11 18 20 25 24 25 25 15 Average Carried 18 | 2 8 12 19 22 22 21 21 11 Final Capacity 25 | 8 25 25 25 25 25 25 25 25 Final Carried 25 | 5 11 18 20 23 22 25 15 8 Class Distribution -------------------- 27% | Trapper-Mutant 27% | Bothacker-Mutant 23% | Mutant 12% | Trapper-Tank 9% | Tank Dominant Class ---------------- Mutant | -10/Materials Mutant | -10/Mines Trapper-Mutant | -10/Exiles Trapper-Mutant | -9/Mines Trapper-Tank | -8/Materials Mutant | -8/Garrison Bothacker-Mutant | -7/Factory Bothacker-Mutant | -7/Garrison Resources | -11 -10 -10 -10 -9 -8 -8 -7 -7 ----------- Run | Yrd Mat Min Exi Min Mat Gar Fac Gar Matter Collected 2207 | 246 147 . 140 189 207 821 233 224 Remotely . | . . . . . . . . . Salvage Created 2082 | . 239 . 140 . 140 1210 68 285 Parts 120 | . 14 . 8 . 9 69 4 16 Haulers Intercepted 2 | . 1 . . . 1 . . . Recyclers Shooed . | . . . . . . . . . Parts Field Recycled . | . . . . . . . . . Retrieved Matter . | . . . . . . . . . Parts Self-Destructed . | . . . . . . . . . Prevented . | . . . . . . . . . Kills | -11 -10 -10 -10 -9 -8 -8 -7 -7 ------- Run | Yrd Mat Min Exi Min Mat Gar Fac Gar Combat Hostiles Destroyed 41 | . 4 . . . 4 27 1 5 Melee 7 | . . . . . . 4 1 2 Guns 18 | . 3 . . . 3 9 . 3 Cannons 10 | . . . . . 1 9 . . AOE 6 | . 1 . . . . 5 . . Classes Destroyed 8 | . 3 . . . 2 2 . 1 Hauler 2 | . 1 . . . 1 . . . Operator 1 | . 1 . . . . . . . Swarmer 11 | . . . . . 2 7 1 1 Grunt 18 | . 4 . . . 1 10 1 2 Brawler 2 | . . . . . . 2 . . Sentry 10 | . . . . . 1 7 . 2 Hunter 1 | . . . . . . . . 1 Programmer 1 | . . . . . . 1 . . Best Kill Streak 6 | . 3 . . . 3 6 1 2 Combat Bots Only 6 | . 3 . . . 3 6 1 2 Max Kills in Single Turn 2 | . 1 . . . 1 1 1 2 Gunslinging . | . . . . . . . . . Exploded 1 | . 1 . . . . 1 . . Melee 1 | . . . . . . 1 1 1 Uniques/NPCs Destroyed . | . . . . . . . . . Combat | -11 -10 -10 -10 -9 -8 -8 -7 -7 -------- Run | Yrd Mat Min Exi Min Mat Gar Fac Gar Hostile Shots Fired 432 | . 17 . . . 22 159 56 178 Missed 148 | . 5 . . . 6 58 13 66 Hits 284 | . 12 . . . 16 101 43 112 Projectile 284 | . 12 . . . 16 101 43 112 Critical Strikes 8 | . . . . . 1 4 2 1 Damage Taken 4070 | . 268 12 . . 201 1438 753 1398 Core 935 | . 83 . . . . 147 245 460 Absorbed by Shields . | . . . . . . . . . Ignored by Resistances 98 | . . . . . . 64 34 . Core Remaining (%) 79 | 100 . . . 66 . 73 . . Volleys Fired 122 | . 21 . . . 10 58 13 20 Largest 3 | . 2 . . . 3 3 1 2 Hottest 114 | . 60 . . . 114 114 5 62 Shots Fired 243 | . 39 . . . 30 133 13 28 Gun 168 | . 34 . . . 20 93 . 21 Cannon 43 | . . . . . 10 33 . . Launcher 19 | . 5 . . . . 7 . 7 Special 13 | . . . . . . . 13 . Kinetic 138 | . 18 . . . 20 79 . 21 Thermal 42 | . . . . . 10 32 . . Explosive 7 | . 5 . . . . . . 2 Electromagnetic 43 | . 16 . . . . 22 . 5 Robot Hit Streak 16 | . 12 . . . 8 10 10 16 Robot Miss Streak 8 | . 3 . . . 6 8 1 2 Penetration Max . | . . . . . . . . . Secondary Targets . | . . . . . . . . . Shots Hit Robots 189 | . 21 . 17 . 21 83 17 30 Core Hits 93 | . 14 . 3 . 11 52 1 12 Critical Kills . | . . . . . . . . . Critical Parts Destroyed . | . . . . . . . . . Critical Strikes 6 | . . . 2 . . 4 . . Burn 1 | . . . . . . 1 . . Impale 5 | . . . 2 . . 3 . . Melee Attacks 72 | . . . 17 . . 25 17 13 Impact . | . . . . . . . . . Slashing . | . . . . . . . . . Piercing 54 | . . . 7 . . 23 14 10 Sneak Attacks 10 | . . . 9 . . . 1 . Combat Hostiles . | . . . . . . . . . Follow-up Attacks . | . . . . . . . . . Damage Inflicted 4062 | . 536 . 382 . 471 2016 61 596 Guns 1630 | . 276 . . . 321 796 . 237 Cannons 633 | . . . . . 150 483 . . Explosions 759 | . 260 . . . . 315 . 184 Melee 1040 | . . . 382 . . 422 61 175 Ramming . | . . . . . . . . . Kinetic 1635 | . 117 . . . 319 962 . 237 Thermal 485 | . 115 . . . 152 189 . 29 Explosive 190 | . 145 . . . . . . 45 Electromagnetic 712 | . 159 . . . . 443 . 110 Impact . | . . . . . . . . . Slashing . | . . . . . . . . . Piercing 1040 | . . . 382 . . 422 61 175 Highest Corruption 2 | . 1 1 1 1 . 2 . . Average Corruption 1 | . 1 1 1 1 . 1 . . Corruption Purged . | . . . . . . . . . Corruption Blocked . | . . . . . . . . . Effects 34 | . 1 1 12 4 . 16 . . Message Errors 14 | . 1 . 4 2 . 7 . . Matter Fused 6 | . . . 1 . . 5 . . Heat Flow Errors 6 | . . 1 4 1 . . . . Energy Discharges 2 | . . . 1 1 . . . . Data Loss (minor) 2 | . . . 2 . . . . . Data Loss (major) 1 | . . . . . . 1 . . Misfires 1 | . . . . . . 1 . . Alerts 2 | . . . . . . 2 . . Overload Shots . | . . . . . . . . . Overflow Damage 60 | . 14 . . . . 23 . 23 Projectiles . | . . . . . . . . . Explosions 51 | . 14 . . . . 14 . 23 Melee 9 | . . . . . . 9 . . Knockbacks 1 | . . . . . . 1 . . Impact . | . . . . . . . . . Kinetic 1 | . . . . . . 1 . . Secondary . | . . . . . . . . . Self-Inflicted Damage 156 | . 73 . . . . 23 . 60 Shots 5 | . 2 . . . . 1 . 2 Rammed . | . . . . . . . . . Targets Rammed . | . . . . . . . . . Kicked . | . . . . . . . . . Crushed . | . . . . . . . . . Highest Temperature 366 | . 42 222 197 127 24 366 3 14 Average Temperature 95 | . 21 112 96 67 12 112 3 5 Received Heat Transfer 1071 | . 102 . . . 63 549 153 204 Effects 2 | . . . . . . 2 . . Interference 2 | . . . . . . 2 . . Siege Activations . | . . . . . . . . . Martial Activations . | . . . . . . . . . Shielding Activations . | . . . . . . . . . Robots Disrupted . | . . . . . . . . . Combat Hostiles . | . . . . . . . . . Robots Corrupted . | . . . . . . . . . Combat Hostiles . | . . . . . . . . . Parts Fried 3 | . . . . . . 3 . . Impact Corruptions . | . . . . . . . . . Robots Melted . | . . . . . . . . . Combat Hostiles . | . . . . . . . . . Parts Melted . | . . . . . . . . . Heat Transferred 914 | . 50 . . . 333 481 . 50 Parts Sabotaged . | . . . . . . . . . Parts Stolen . | . . . . . . . . . Parts Stripped . | . . . . . . . . . Power Chain Reactions 2 | . 1 . . . . . . 1 Alert | -11 -10 -10 -10 -9 -8 -8 -7 -7 ------- Run | Yrd Mat Min Exi Min Mat Gar Fac Gar Maximum Alert Level 4 | . . . . . . 4 2 1 Low Security (%) 41 | 100 100 100 . 100 100 7 . 46 Level 1 16 | . . . . . . 15 37 53 Level 2 24 | . . . . . . 32 62 . Level 3 15 | . . . . . . 39 . . Level 4 2 | . . . . . . 5 . . Level 5 . | . . . . . . . . . High Security . | . . . . . . . . . Max Security . | . . . . . . . . . Peak Influence 1269 | . 150 19 . . 63 1269 665 256 Initial 665 | . . 19 . . . . 665 161 Average 356 | . 63 1 . . 12 630 452 204 Influence Increases 2130 | . 218 . . . 207 1339 163 203 Destroy 0b10 Robot/C 920 | . 80 . . . 120 540 80 100 Destroy 0b10 Robot/NC 30 | . 10 . . . 10 10 . . Destroy Leader 66 | . 22 . . . 34 10 . . Allied During Kill 17 | . . . . . 11 . 5 1 Trap Triggered on 0b10 110 | . . . . . . 60 30 20 Successful Hack 51 | . 9 . . . 12 14 16 . Disable Machine 150 | . 30 . . . 15 105 . . Anti-Garrison Action 500 | . . . . . . 450 . 50 Destroy Structure 76 | . 37 . . . 5 15 2 17 Lose Combat Pursuer 210 | . 30 . . . . 135 30 15 Influence Decreases 1966 | . 168 50 . . 207 70 1202 269 Entered New Map 704 | . . 31 . . . . 604 69 Time Decay 771 | . 168 19 . . 186 . 398 . Lost Part 291 | . . . . . 1 70 60 160 Lost Ally 200 | . . . . . 20 . 140 40 Squads Dispatched 7 | . 1 . . 1 3 . 2 . Investigation 2 | . . . . 1 1 . . . Extermination 2 | . . . . . . . 2 . Reinforcement 3 | . 1 . . . 2 . . . Assault . | . . . . . . . . . Garrison . | . . . . . . . . . Intercept . | . . . . . . . . . Searches Triggered . | . . . . . . . . . Construction Impeded . | . . . . . . . . . Haulers Reinforced . | . . . . . . . . . Active Scanning Responses . | . . . . . . . . . Cargo Convoy Interrupts . | . . . . . . . . . Stealth | -11 -10 -10 -10 -9 -8 -8 -7 -7 --------- Run | Yrd Mat Min Exi Min Mat Gar Fac Gar Distress Signals 4 | . 1 . . . 3 . . . Communications Jammed . | . . . . . . . . . Distress Signals . | . . . . . . . . . Times Spotted 106 | . 11 . . 1 13 48 15 18 Peak Tracking Total 7 | . 5 . . 1 5 7 3 5 Tactical Retreats 9 | . 1 . . . . 6 1 1 Traps | -11 -10 -10 -10 -9 -8 -8 -7 -7 ------- Run | Yrd Mat Min Exi Min Mat Gar Fac Gar Traps Triggered 5 | . 1 1 . . 1 2 . . Indirectly 1 | . . . . . . 1 . . Trap Hack Attempts 193 | . . 17 . . 16 128 32 . Triggered 2 | . . . . . . 1 1 . Disarmed 3 | . . 1 . . 1 1 . . Reprogrammed 21 | . . 2 . . . 19 . . Reused 11 | . . . . . . 6 3 2 Traps Extracted 30 | . . 7 . . . 22 1 . Installed 30 | . . . . . . 22 6 2 Triggered 11 | . . . . . . 6 3 2 Most Traps Carried 11 | . . 7 7 7 7 11 7 2 Machines | -11 -10 -10 -10 -9 -8 -8 -7 -7 ---------- Run | Yrd Mat Min Exi Min Mat Gar Fac Gar Machines Disabled 14 | . 2 . . . 1 10 . 1 Max in Single Turn 1 | . 1 . . . . 1 . 1 Garrison Relay 4 | . . . . . . 3 . 1 Machines Repaired . | . . . . . . . . . Machines Dismantled . | . . . . . . . . . Machines Sabotaged . | . . . . . . . . . Overloaded Fab Kills . | . . . . . . . . . Hacking | -11 -10 -10 -10 -9 -8 -8 -7 -7 --------- Run | Yrd Mat Min Exi Min Mat Gar Fac Gar Machines Accessed 20 | . 3 2 4 1 4 1 5 . Terminals 12 | . 3 1 . . 3 1 4 . Fabricators . | . . . . . . . . . Repair Stations . | . . . . . . . . . Recycling Units . | . . . . . . . . . Scanalyzers . | . . . . . . . . . Garrison Access 2 | . . . . . 1 . 1 . Total Hacks 77 | . 6 3 49 1 9 1 8 . Successful 65 | . 3 1 49 1 4 1 6 . Failed 12 | . 3 2 . . 5 . 2 . Catastrophic 3 | . 1 . . . . . 2 . Database Lockouts . | . . . . . . . . . Manual 16 | . 5 . . . 7 . 4 . Terminals 24 | . 6 2 . . 8 1 7 . Fabricators . | . . . . . . . . . Repair Stations . | . . . . . . . . . Recycling Units . | . . . . . . . . . Scanalyzers . | . . . . . . . . . Garrison Access 2 | . . . . . 1 . 1 . Terminal Hacks 57 | . 1 1 49 1 1 1 3 . Record 50 | . . . 49 . . . 1 . Robot Analysis 1 | . . . . . . . 1 . Open Door 2 | . . 1 . 1 . . . . Open DSF 1 | . . . . . . . 1 . Emergency Access Points 1 | . . . . . . 1 . . Locate Traps 2 | . 1 . . . 1 . . . Fabricator Hacks . | . . . . . . . . . Repair Station Hacks . | . . . . . . . . . Recycling Unit Hacks . | . . . . . . . . . Scanalyzer . | . . . . . . . . . Garrison Access Hacks 2 | . . . . . 1 . 1 . Unlock Access 2 | . . . . . 1 . 1 . Unauthorized Hacks 6 | . 2 . . . 2 . 2 . Terminals 6 | . 2 . . . 2 . 2 . Botnet 6 | . 2 . . . 2 . 2 . Fabricators . | . . . . . . . . . Repair Stations . | . . . . . . . . . Recycling Units . | . . . . . . . . . Scanalyzers . | . . . . . . . . . Garrison Access . | . . . . . . . . . Data Cores Recovered 1 | . 1 . . . . . . . Used . | . . . . . . . . . Hacking Detections 11 | . 2 1 . . 3 1 4 . Full Trace Events . | . . . . . . . . . Feedback Events . | . . . . . . . . . Feedback Blocked . | . . . . . . . . . Robot Schematics Acquired . | . . . . . . . . . Robots Built . | . . . . . . . . . Authchips . | . . . . . . . . . Time . | . . . . . . . . . Total Robot Build Rating . | . . . . . . . . . Part Schematics Acquired . | . . . . . . . . . Parts Built . | . . . . . . . . . Authchips . | . . . . . . . . . Time . | . . . . . . . . . Total Part Build Rating . | . . . . . . . . . Parts Repaired . | . . . . . . . . . Time . | . . . . . . . . . Parts Recycled . | . . . . . . . . . Recycled Matter . | . . . . . . . . . Retrieved Matter . | . . . . . . . . . Retrieved Components . | . . . . . . . . . Parts Scanalyzed . | . . . . . . . . . Part Schematics Acquired . | . . . . . . . . . Parts Damaged . | . . . . . . . . . Bothacking | -11 -10 -10 -10 -9 -8 -8 -7 -7 ------------ Run | Yrd Mat Min Exi Min Mat Gar Fac Gar Used RIF Installer 1 | . . . . . . 1 . . Robots Hacked 14 | . . . . . . 1 10 3 Non-combat . | . . . . . . . . . Combat 14 | . . . . . . 1 10 3 Robot Hacks Applied 14 | . . . . . . 1 10 3 scatter_targeting 2 | . . . . . . . 2 . go_dormant 1 | . . . . . . . 1 . formatsys_high 11 | . . . . . . 1 7 3 Relay Couplers Released 16 | . . . . . . 13 . 3 Machine Destruction 16 | . . . . . . 13 . 3 Attached 7 | . . . . . . 1 5 1 Fabnet Peak Effective % . | . . . . . . . . . Robots Rewired 3 | . . . 3 . . . . . Allies Hacked . | . . . . . . . . . Hacks Repelled . | . . . . . . . . . Allies | -11 -10 -10 -10 -9 -8 -8 -7 -7 -------- Run | Yrd Mat Min Exi Min Mat Gar Fac Gar Total Allies 14 | . . . 3 . . 1 7 3 Largest Group 3 | . . . 3 3 3 1 2 1 Highest-Rated Group 50 | . . . 50 50 50 21 45 21 Highest-Rated Ally 32 | . . . 21 21 21 21 32 21 Total Orders . | . . . . . . . . . Ally Attacks 64 | . . . . 1 20 1 29 13 Total Damage 816 | . . . . . 263 20 333 200 Kills 6 | . . . . . 3 . 3 . Allies Corrupted . | . . . . . . . . . Allies Melted . | . . . . . . . . . Intel | -11 -10 -10 -10 -9 -8 -8 -7 -7 ------- Run | Yrd Mat Min Exi Min Mat Gar Fac Gar Active Infowar (turns) 3989 | . 372 82 . . 388 2165 953 29 Traps 3535 | . . . . . 388 2165 953 29 Seismic 454 | . 372 82 . . . . . . Robot Analysis Total 1 | . . . . . . . 1 . Derelict Logs Recovered 1 | . . 1 . . . . . . Drone Launches . | . . . . . . . . . Drone Recoveries . | . . . . . . . . . Exploration | -11 -10 -10 -10 -9 -8 -8 -7 -7 ------------- Run | Yrd Mat Min Exi Min Mat Gar Fac Gar Turns Passed 6547 | 53 489 271 1164 287 764 2165 953 401 Spaces Moved 3813 | 44 362 180 834 176 352 1136 548 181 Core 16 | 13 . . . . . 1 . 2 Treads . | . . . . . . . . . Legs . | . . . . . . . . . Wheels 3797 | 31 362 180 834 176 352 1135 548 179 Hover . | . . . . . . . . . Flight . | . . . . . . . . . Fastest Speed 50 | 50 90 135 135 135 150 145 135 135 Average Speed 143 | 83 111 135 135 135 180 149 145 161 Slowest Speed 1750 | 100 135 135 135 135 205 1750 195 1400 Overloaded Moves . | . . . . . . . . . Propulsion Burnouts . | . . . . . . . . . Robots Hopped . | . . . . . . . . . Potential Cave-ins . | . . . . . . . . . Cave-ins Triggered . | . . . . . . . . . Exploration Rate (%) 42 | 4 69 34 92 32 37 76 15 26 Regions Visited 8 Branch Regions 3 Pre-discovered Areas 1 | . . . 1 . . . . . Known Exits Taken 2 | . . . . . 1 . 1 . Unknown Exits Taken 5 | 1 1 1 1 1 . . . . Scrap Searched . | . . . . . . . . . Spaces Dug 2 | . . . . . . . 2 . Terrain Destroyed 52 | . 33 . . . 4 . 2 13 Melee 2 | . . . . . . . 2 . Projectile 4 | . . . . . 4 . . . AOE 46 | . 33 . . . . . . 13 Terrain Rammed . | . . . . . . . . . Walls Destroyed . | . . . . . . . . . Machines Disabled . | . . . . . . . . . Actions | -11 -10 -10 -10 -9 -8 -8 -7 -7 --------- Run | Yrd Mat Min Exi Min Mat Gar Fac Gar Total 4625 | 60 405 207 856 226 458 1471 683 259 Wait 199 | . 8 4 . 42 54 31 42 18 Move 3807 | 43 361 179 833 175 352 1135 548 181 Hop . | . . . . . . . . . Pick Up 58 | 11 6 2 2 5 10 18 2 2 Fast Attach 7 | . 1 . . . . 3 . 3 Attach 39 | 6 . 1 . . 3 8 12 9 Detach 7 | . . 1 . . . 1 3 2 Swap 39 | . 6 3 4 1 6 16 1 2 Drop 46 | . 2 . . 3 7 25 5 4 Fire 122 | . 21 . . . 10 58 13 20 Melee 72 | . . . 17 . . 25 17 13 Ram . | . . . . . . . . . Kick . | . . . . . . . . . Crush . | . . . . . . . . . Escape Stasis . | . . . . . . . . . Rewire 6 | . . . . . . 1 2 3 Trap 223 | . . 17 . . 16 150 38 2 Miscellaneous . | . . . . . . . . . Route ------- -11/Scrapyard -10/Materials (discovered 3 exits: [*Mat] / *Min x2) -10/Mines (discovered 2 exits: [*Mat] / *Exi) -10/Exiles -9/Mines -8/Materials -8/Garrison (discovered 3 exits: *Fac x3) -7/Factory -7/Garrison History --------- Turn | Location | Event 11 | -11/Scrapyard | Discovered new exit (range 15) 54 | -11/Scrapyard | Entered Materials 71 | -10/Materials | Discovered new exit (range 15) 301 | -10/Materials | Discovered new exit (range 16) 311 | -10/Materials | Build established: Mutant 490 | -10/Materials | Discovered new exit (range 10) 543 | -10/Materials | Entered Mines 560 | -10/Mines | Learned Materials trap positions 616 | -10/Mines | Met a Derelict who couldn't figure out how to use a Trap Extractor 709 | -10/Mines | Discovered new exit (range 9) 714 | -10/Mines | A weapon hastily lodged in a ceiling crevice suddenly fell to the ground 809 | -10/Mines | Deemed a non-threat by the Exiles lab entrance 809 | -10/Mines | Discovered new exit (range 5) 814 | -10/Mines | Entered Exiles 814 | -10/Exiles | Found Exiles lab destroyed 947 | -10/Exiles | Learned location of Zion (-6) 1090 | -10/Exiles | Build established: Trapper-Mutant 1605 | -10/Exiles | Discovered new exit (range 12) 1978 | -10/Exiles | Entered Mines 1978 | -9/Mines | Accompanied by 3 allies 1981 | -9/Mines | Met a Derelict shopkeep closing up shop 2221 | -9/Mines | Assembled infested the area 2226 | -9/Mines | Assisted by a Guerilla fighting off Assembled 2233 | -9/Mines | Discovered new exit (range 16) 2265 | -9/Mines | Entered Materials 2265 | -8/Materials | Accompanied by 3 allies 2265 | -8/Materials | Evolved 4 slots: Utility x3, Weapon x1 2266 | -8/Materials | Loaded intel: 22 trap records 2580 | -8/Materials | Build established: Trapper-Tank 3029 | -8/Materials | Identified exit to Garrison 3029 | -8/Materials | Entered Garrison 3029 | -8/Garrison | Accompanied by 1 ally 3393 | -8/Garrison | Triggered checkpoint 3435 | -8/Garrison | Triggered checkpoint 3742 | -8/Garrison | Build established: Tank 3752 | -8/Garrison | Triggered checkpoint 3787 | -8/Garrison | Garrison Relay disabled 4097 | -8/Garrison | Build established: Mutant 4103 | -8/Garrison | Triggered checkpoint 4236 | -8/Garrison | Garrison Relay disabled 4385 | -8/Garrison | Discovered new exit (range 14) 4481 | -8/Garrison | Triggered checkpoint 4557 | -8/Garrison | Triggered checkpoint 4635 | -8/Garrison | Triggered checkpoint 4738 | -8/Garrison | Discovered new exit (range 9) 4753 | -8/Garrison | Installed Relay Interface Framework 4869 | -8/Garrison | Garrison Relay disabled 5007 | -8/Garrison | Discovered new exit (range 11) 5059 | -8/Garrison | Build established: Bothacker-Mutant 5194 | -8/Garrison | Entered Factory 5194 | -7/Factory | Accompanied by 1 ally 5194 | -7/Factory | Evolved 2 slots: Utility x2 5677 | -7/Factory | Lost 3 allies 6069 | -7/Factory | Lost 5 parts (2n1u2w) 6147 | -7/Factory | Identified exit to Garrison 6147 | -7/Factory | Entered Garrison 6237 | -7/Garrison | Triggered checkpoint 6289 | -7/Garrison | Garrison Relay disabled 6301 | -7/Garrison | Triggered checkpoint 6400 | -7/Garrison | Core integrity fell below 50% 6442 | -7/Garrison | Lost 7 parts (1p2n4w) 6529 | -7/Garrison | Core integrity fell below 20% 6548 | -7/Garrison | Destroyed by Y-54 Guardian with Flak Gun Last Messages --------------- 06498_ Slug penetrates Wall. 06498_ Imp. Deuterium Engine destroyed. 06503_ Slug penetrates Trooper 4f. 06504_ Trooper 4f destroyed. 06508_ Destroyed Lgt. Nuclear Core. 06514_ Penetrated by Slug. 06517_ Arm. Wheel destroyed. 06518_ Penetrated by Slug. 06521_ Adv. Treads destroyed. 06522_ H-55 Commando destroyed. 06524_ Penetrated by Slug. 06531_ Relay Coupler [Grunt] destroyed. 06534_ Penetrated by Slug. 06537_ Slug penetrates Reinforced Barrier. Garrison Door activated. 06540_ Penetrated by Slug. 06543_ Slug penetrates Wall. 06543_ Mak. Spear destroyed. 06546_ Penetrated by Slug. 06546_ Relay Coupler [Sentry] destroyed. Map ----- +----------------------------------------------------+ | ?????????????????????????????????????????????????? | | ?????????????????????????????????????????????????? | | ?????????????????????????????????????????????????? | | ?????????????????????????????????????????????????? | | ?????????????????????????????????????????????????? | | ?????????????????????????????????????????????????? | | ?????????????????????????????????????????????????? | | ?????????????????????????????????????????????????? | | ?????????????????????????????????????????????????? | | ?????????????????????????????????????????????????? | | ?????????????????????????????????????????????????? | | ?????????????????????????????????????????????????? | | ?????????????????????????????????????????????????? | | ?????????????????????????????????????????????????? | | ?????????????????????????????????????????????????? | | ?????????????????????????????????????????????????? | | ?????????????????????????????????????????????????? | | ?????????????????????????????????????????????????? | | ?????????????????????????????????????????????????? | | ?????????????????????????????????????????????????? | | ?????????????????????????????????????????????????? | | ?????????????????????????????????????????????????? | | ????????????????# ?????????????????#????????????? | | ???????????## ## ############ #????????????? | | ???????????# Y #????????????? | | ?????????? + Y @ #????????????? | | ???????????# h % #????????????? | | ???????????# ## ^ ^## [###########????????????? | | ???????????# ## ## =###????????????????????? | | ???????????" %* #????????????????????? | | ???????????" = #????????????????????? | | ???????????" #????????????????????? | | ???????????" #????????????????????? | | ???????????# ## ## !###????????????????????? | | ???????????? ???# ## *%##########?????????????? | | ???????????# = #?????????????? | | ???????????# #?????????????? | | ???????????# ####### #?????????????? | | ???????????# ##""""## ##?????# #?????????????? | | ??????????????????????# # ## ### #?????????????? | | ??????????????????????# + ==#?????????????? | | ??????????????????????# ### #### #?????????????? | | ??????????????????????# #?????##[ #?????????????? | | ??????????????????????# # #?### ####??????????? | | ??????????????????????# # # #??????????? | | ??????????????????????# ### # ###########? | | ??????????????????????# ^ * #? | | ??????????????????????# *= #? | | ??????????????????????##### # #=!= * ####### #? | | ?????????????????????????# #### *= ####?????# #? | +----------------------------------------------------+ Best States ------------- Heat Dissipation 58 Energy Generation 16 Energy Capacity 290 Matter Stores 300 Matter Capacity 300 Sight Range 16 Terrain Scan Density 10 Armor Coverage 600 Resistance: TH 10 Evasion (%) 42 Recoil Reduction 1 Relay Coupler Types 4 Relay Coupler Value 55 Trap Extractor Capacity 6 Item Schematics ----------------- None Robot Schematics ------------------ None Fabricated ------------ Nothing Repaired ---------- Nothing Alien Tech Used ----------------- None Achievements -------------- Minesweeper Challenges ------------ None Game ------ Seed GunBiocellHammer Manual? 0 Play Time 01:18:55 Cumulative 150.0 hours Start 2025.06.23 @ 00:03:23 End 2025.06.23 @ 13:51:27 Sessions 3 Manual Loads 0 Difficulty Rogue Special Mode None Game No. 234 Rogue 234 Adventurer 0 Explorer 0 Win Type - Total 1 Types 1/0/0/0/0/0/0/0/0/0 Lore% 19 Gallery% 44 Achievement% 44 Wizard Run 0 Options --------- Layout 2 ASCII 0 Keyboard 0 Movement Mouse Keybinds 0 Fullscreen 1 Font 24/Smallcaps Map View 50x44 Zoom Use 0% Tactical HUD 1 Map Filters NONE Filters NONE Steam 1 RUN: db04d1e6-72ca-4fae-9eb1-f2951a45f16d